Workbook

Sheet Summary
A1: Installer Model: summary | M1: Spreadsheet by: David William House, author, The Complete Biogas Handbook. Workshops to learn to become an installer, and the book, available at completebiogas.com
A2: sum | D2: Green cells | E2: contain assumptions or assertions which you can change. All other numbers are calculated. No touch non-green cells!
B5: income_total_net | C5: Net income or profit | D5: =ROUNDDOWN(sum_income_total_gross-sum_exp_total_summary,-1) -> 2630 | E5: /mo | G5: =sum_income_total_net*12 -> 31560 | H5: /yr | J5: As | L5: Favorability
J6: Used | K6: l,a,m,c? | L6: Least | M6: Avg. | N6: Most | O6: Custom | P6: Units
B7: income_digester | C7: Digester/Producer income | D7: =sum_incom_perProducersTotal_perMo -> 9487.05 | E7: /mo | F7: =IF(sum_income_total_gross>0,sum_income_digester/sum_income_total_gross,) -> 1 | H7: sal_hourly_Owner | I7: Owner hourly $ | J7: 20
B8: income_other | C8: Other Income | D8: =0 -> 0 | E8: /mo | F8: =IF(sum_income_total_gross>0,sum_income_other/sum_income_total_gross,) -> 0 | H8: sal_hourly_Employee | I8: Employee hourly $ | J8: =IF(K8="l",L8,IF(K8="a",M8,IF(K8="m",N8,IF(K8="c",O8,"!")))) -> 16 | K8: a | L8: 18 | M8: 16 | N8: 14 | O8: 22 | P8: $/hr
B9: income_total_gross | C9: Total income | D9: =SUM(D7:D8) -> 9487.05 | E9: /mo | H9: producer_numTotal | I9: Number of producers | J9: 15 | K9: c | L9: 4 | M9: 10 | N9: 30 | O9: 15 | P9: #
H10: foodWaste_tonsPerWeek | I10: Food waste, tons/wk/prod, avg. | J10: 1.4 | K10: a | L10: 0.75 | M10: 1.4 | N10: 2 | P10: tons/wk (wet)
B11: exp_fixed_total_summary | C11: Fixed expenses | D11: =exp_fixed_perMo_asSummed -> 3490 | E11: /mo | F11: =IF(sum_exp_total_summary>0,sum_exp_fixed_total_summary/sum_exp_total_summary,) -> 0.5096750639 | H11: biogas_cuFtPerTonWetWeight | I11: Biogas/ton FW, wet weight | J11: 3000 | K11: a | L11: 2500 | M11: 3000 | N11: 3500 | P11: ft3/ton (wet)
B12: exp_var_total_summary | C12: Variable expenses | D12: =exp_variable_perMo_asSummed*sum_producer_numTotal -> 3357.5 | E12: /mo | F12: =IF(sum_exp_total_summary>0,sum_exp_var_total_summary/sum_exp_total_summary,) -> 0.4903249361 | H12: biogas_pctMethane | I12: %Methane in biogas | J12: 0.65 | K12: a | L12: 0.6 | M12: 0.65 | N12: 0.75 | P12: %
B13: exp_total_summary | C13: Total expenses | D13: =SUM(D11:D12) -> 6847.5 | E13: /mo | H13: cost_energy_natGasPerTherm | I13: Cost natural gas, per therm | J13: 0.4 | K13: a | L13: 0.3 | M13: 0.4 | N13: 0.5 | P13: $/therm
H14: cost_tippingFeesPerTon | I14: Tipping fees, per ton | J14: 100 | K14: m | L14: 0 | M14: 50 | N14: 100 | P14: $/ton
H15: digester_buildFromKitsOrParts | I15: Build digesters from kits or parts? | J15: =IF(K15="l",L15,IF(K15="a",M15,IF(K15="m",N15,IF(K15="c",O15,"!")))) -> kits | K15: a | L15: kits | M15: kits | N15: parts | O15: parts
K16: type in one of the four letters (l,a,m,c) to change
K17: the value in a given row for the col just above
C18: Monthly charges, per producer | I18: Biogas produced/producer (possibly)
B19: producerCharge_total_perMo | C19: Producer pays, total | D19: =SUM(D20:D21) -> 632.47 | E19: /mo | H19: biogas_perProdPerMo | I19: Biogas/mo, ft3 | J19: =ROUNDDOWN(sum_foodWaste_tonsPerWeek*var_time_weeksPerMonth*sum_biogas_cuFtPerTonWetWeight,-1) -> 18260 | K19: ft3/mo.
B20: producerCharge_pctTipping_perMo | C20: Charge based on % tipping fee | D20: =sum_cost_tippingFeesPerTon*sum_foodWaste_tonsPerWeek*var_time_weeksPerMonth -> 608.75 | E20: =CONCATENATE(ROUND(var_income_perMo_pctOfTipping,2)*100,"% of ",DOLLAR(sum_cost_tippingFeesPerTon*sum_foodWaste_tonsPerWeek*var_time_weeksPerMonth,0)," total tipping fee/mo.") -> 75% of $609 total tipping fee/mo. | H20: biogas_perProdPerMoMethaneFraction | I20: =CONCATENATE("ft³ methane, @",ROUND(sum_biogas_pctMethane*100,0),"% of biogas") -> ft³ methane, @65% of biogas | J20: =ROUNDDOWN(sum_biogas_perProdPerMo*sum_biogas_pctMethane,-1) -> 11860 | K20: ft3/mo.
B21: producerCharge_pctEnergyProduced_perMo | C21: Charge based on % biogas energy | D21: =var_income_perMo_pctOfEnergyProduced*sum_biogas_valuePerMoAsNatGas -> 23.72 | E21: =CONCATENATE(ROUND(var_income_perMo_pctOfEnergyProduced,2)*100,"% of ",DOLLAR(sum_biogas_valuePerMoAsNatGas,0)," biogas energy value") -> 50% of $47 biogas energy value | H21: biogas_valuePerMoAsNatGas | I21: Value of methane as nat. gas replacement | J21: =(sum_biogas_perProdPerMoMethaneFraction/var_methane_cuFtPerTherm)*sum_cost_energy_natGasPerTherm -> 47.44 | K21: $/mo.
C24: Note that this is not a planning tool, nor is it intended to offer exact estimates of cost, profit or loss. It reflects current assumptions about the business of an installer, and those assumptions may easily be wrong. (You'll have to be the judge on that.) What this spreadsheet is intended to do is to offer some rather modest evidence that there may be a business in providing small-scale biogas digesters to do on-site digestion, a solution which, uniquely, returns the energy embodied in the food waste to the producer as a burnable gas, a value not provided by landfill, composting, off-site AD, etc. The key numbers are offered above, but other variables will have an impact, so look around and make sure that you know what the assumptions are. My hope is that we can show the idea has legs. Anyone interested in trying?
C26: =IF(sum_producer_numTotal=0,"Number of producers simply cannot be zero. Error!","") -> 
C27: Note: sentences below are 'active', and their content will change depending on the values that you provide for certain variables. Look around at the different worksheets and try various things, but (generally speaking) DO NOT change things in cells that are not painted green unless you understand what you are doing. Even so, if you screw things up, you can download another copy of this SS, however, so no worries... In fact, we expect to find errors and problems in this model, which is as yet so new, so keep checking back for the most recent version!
C28: =CONCATENATE("Presumed per ton tipping fee is ",IF($K$14="l","{least favorable}",IF($K$14="a","{average}",IF($K$14="m","{most favorable}",IF($K$14="c","{a custom number}","!")))),", at ",DOLLAR(sum_cost_tippingFeesPerTon,0),". Higher tipping fees = greater profit, since the cost of your service is assumed to include ",ROUND(var_income_perMo_pctOfTipping*100,0),"% of the tipping fees.") -> Presumed per ton tipping fee is {most favorable}, at $100. Higher tipping fees = greater profit, since the cost of your service is assumed to include 75% of the tipping fees.
C29: =CONCATENATE("Presumed food waste per producer is ",IF($K$10="l","{least favorable}",IF($K$10="a","{average}",IF($K$10="m","{most favorable}",IF($K$10="c","{a custom number}","!")))),", at ",ROUND(sum_foodWaste_tonsPerWeek,2),"tons/wk. Larger amounts = greater profit, since the cost of your service is assumed to include ",ROUND(var_income_perMo_pctOfEnergyProduced*100,0),"% of the energy produced as methane.") -> Presumed food waste per producer is {average}, at 1.4tons/wk. Larger amounts = greater profit, since the cost of your service is assumed to include 50% of the energy produced as methane.
C30: =CONCATENATE("Presumed nat. gas cost is ",IF($K$13="l","{least favorable}",IF($K$13="a","{average}",IF($K$13="m","{most favorable}",IF($K$13="c","{a custom number}","!")))),", at ",DOLLAR(sum_cost_energy_natGasPerTherm,2),"/therm. Higher gas prices = greater profit, since the cost of natural gas fixes the value of the energy produced as methane.") -> Presumed nat. gas cost is {average}, at $0.40/therm. Higher gas prices = greater profit, since the cost of natural gas fixes the value of the energy produced as methane.
C31: =CONCATENATE("Number of producers is ",IF($K$9="l","{least favorable}",IF($K$9="a","{average}",IF($K$9="m","{most favorable}",IF($K$9="c","{a custom number}","!")))),", at ",sum_producer_numTotal,". More producers generall means more profit, since fixed expenses are amortized over more producers.") -> Number of producers is {a custom number}, at 15. More producers generall means more profit, since fixed expenses are amortized over more producers.
C32: =CONCATENATE("Est. manhours per month to provide services for these ",sum_producer_numTotal," producers is ",ROUND(tim_moTime_perDigPerProd_Total*sum_producer_numTotal,1)," hr/mo. (One person working a ",var_workHrsPerWeek_avg," hr workweek has ",ROUND(var_workHrsPerWeek_avg*var_time_weeksPerMonth,0), " working hrs available per avg. mo") -> Est. manhours per month to provide services for these 15 producers is 136.1 hr/mo. (One person working a 40 hr workweek has 174 working hrs available per avg. mo
C33: =CONCATENATE("Note that wks/yr (",ROUND(var_time_weeksPerYear,2),") and wks/mo (",ROUND(var_time_weeksPerMonth,2),") are CALCULATED, thus are an exact average, versus the standard values of 52 and 4.") -> Note that wks/yr (52.18) and wks/mo (4.35) are CALCULATED, thus are an exact average, versus the standard values of 52 and 4.
C34: =CONCATENATE("Travel time can sometimes double or triple time required for servicing. Your producers are an avg. ",var_producer_tripMiles_avg," miles away, and avg. drive speed has been set at ",var_speed_urban_avg,"MPH, giving a round trip time cost of ",ROUND(tim_moTime_roundTripToProd_Avg*60,0)," min.") -> Travel time can sometimes double or triple time required for servicing. Your producers are an avg. 10 miles away, and avg. drive speed has been set at 30MPH, giving a round trip time cost of 40 min.
C35: =IF(tim_moTime_hrsReqdForAllProducers>=tim_moTime_hrsAvailablePerMoOnePerson,CONCATENATE("Given that the time required to service all producers (",ROUND(tim_moTime_hrsReqdForAllProducers,0)," hrs/mo) is more than the average working hours you specified for one person (@ ",ROUND(tim_moTime_hrsAvailablePerMoOnePerson,0)," hrs/mo), you may need an employee..."),"") -> 
C37: =IF(exp_costFix_rentMortgageLease_perMo>1000,CONCATENATE("Major monthly expenses include rent/mortgage of ",DOLLAR(exp_costFix_rentMortgageLease_perMo,0),". Lower monthlies mean greater take home pay."),"") -> Major monthly expenses include rent/mortgage of $2,500. Lower monthlies mean greater take home pay.
C38: =IF(AND(exp_costFix_truck_perMo<>"",exp_costFix_truck_perMo>200),CONCATENATE("Major monthly expenses include truck lease/payment of ",DOLLAR(exp_costFix_truck_perMo,0),". Lower monthlies mean greater take home pay."),"") -> Major monthly expenses include truck lease/payment of $640. Lower monthlies mean greater take home pay.
C40: =CONCATENATE("Please note that 'startup' costs for each producer— including digester install (@",DOLLAR(exp_costVar_digester_installation_perEa,0),") and training producer employees by installer (@",DOLLAR(exp_costVar_training_perEa,0),")— are not included in the calculations above.") -> Please note that 'startup' costs for each producer— including digester install (@$75) and training producer employees by installer (@$120)— are not included in the calculations above.
B67: costVar_employeesPerProducer
B68: costVar_producersPerEmployee
D95: As | F95: Favorability | K95: Cost
D96: Used | E96: l,a,m? | F96: Least | H96: Avg. | I96: Most | K96: emp | L96: owner
B97: Variables (3 choices by favorability to profit)
B98: cost_salaryOwnerHourly | I98: add 'custom' field as 4th col
B106: cost_energy_ElectricPerTherm
B107: cost_digesterInstallation_hours
B108: cost_digesterTraining_hours
B109: serviced_timesPerWeek
B110: serviced_hoursPerTime_Avg
B111: producer_tripMiles_avg
B112: cost_IBCs_perEa
B113: cost_IBCs_perEa
B114: paperwork_hrsPerProducerPerMo
B115: costService_perMo_pctOfTipping
B116: costService_perMo_pctOfEnergyProduced

Sheet Expenses
A1: Expenses
A2: exp
B4: Monthly variable (per producer) costs | D4: =SUM(D5:D8) -> 223.8333333
B5: employees_hoursPerProducerPerMo | C5: =CONCATENATE(var_IBCs_numPerEaDigester," IBCs/producer: $",ROUND(exp_costVar_ibcs_perMo,0)," per mo") -> 2 IBCs/producer: $17 per mo | D5: =(var_IBCs_amortizedPerMoCost*var_IBCs_numPerEaDigester) -> 16.66666667
B6: costVar_ibcs_perMo | C6: =CONCATENATE("Monthy amoritzation, 1 digester") -> Monthy amoritzation, 1 digester | D6: =var_digester_amortCostCalculated -> 62 | E6: =IF(sum_digester_buildFromKitsOrParts="kits",CONCATENATE("Installer purchases and builds kits @",DOLLAR(var_digester_costKitCompleted,0)," ea."),CONCATENATE("Installer manufactures parts and builds digesters @",DOLLAR(var_digester_costFromPartsCompleted,0)," ea.")) & CONCATENATE(", amortized over ",var_digester_amortYrs_avg," mos. @ ",ROUND(var_digester_pctAPR*100,1),"% interest offers a per ea cost of ",DOLLAR(var_digester_amortCostCalculated,0),".") -> Installer purchases and builds kits @$1,920 ea., amortized over 36 mos. @ 10% interest offers a per ea cost of $62.
C7: Cost servicing (/mo, hrs + travel) | D7: =tim_moTime_perDigPerProd_Total*sum_sal_hourly_Employee -> 145.1666667 | E7: =CONCATENATE("Calculated cost assumes ",DOLLAR(sum_sal_hourly_Employee,0)," hourly wage.") -> Calculated cost assumes $16 hourly wage.
B10: Monthly fixed costs | D10: =ROUNDUP(SUM(D11:D20),-1) -> 3490
B11: costFix_rentMortgageLease_perMo | C11: Land lease/rent, or mortgage | D11: 2500 | E11: =IF(D11<>"","$/mo","") -> $/mo | F11: =IF(exp_costFix_rentMortgageLease_perMo<1,"<== Installer has a place to use for her/his business for free.","") -> 
B12: costFix_phone_perMo | C12: Phone | D12: 120 | E12: =IF(D12<>"","$/mo","") -> $/mo
B13: costFix_web_perMo | C13: Web | D13: 25 | E13: $/mo
B14: costFix_internet_perMo | C14: Internet | D14: 100 | E14: $/mo
B15: costFix_busCards_perMo | C15: Business cards, brochures | D15: 20 | E15: $/mo
B16: costFix_truck_perMo | C16: =IF(D30<>"",C30,"") -> Truck lease, payment or depreciation | D16: =IF(D30<>"",D30,"") -> 640 | E16: $/mo | F16: =IF(exp_costFix_truck_perMo="","<== Installer is using a truck s/he owns outright.","") -> 
B17: costFix_crane_perMo | C17: Crane/winch | D17: 80 | E17: $/mo
B18: costFix_item08_perMo | F18: do not edit
B19: costFix_item09_perMo | F19: any of the
B20: costFix_item10_perMo | F20: cells inside
B21: costFix_item11_perMo | F21: the border
B22: costFix_item12_perMo
B23: costFix_item13_perMo
B24: costFix_item14_perMo
B25: costFix_item15_perMo
B26: costFix_item16_perMo | C26: =IF(D38<>"",C38,"") -> 
B28: $/mo: loans; rented or leased items | D28: =SUM(D30:D35) -> 720 | E28: =CONCATENATE("(Note: the ",DOLLAR(D28,0)," total is not 'summed' toward expenses.") -> (Note: the $720 total is not 'summed' toward expenses.
C29: Item | D29: $/mo | E29: APR (%) | F29: $ borrowed | G29: term (mos)
B30: leases_truck | C30: Truck lease, payment or depreciation | D30: =IF(AND(E30<>0,F30<>0,G30<>0),ROUNDUP(PMT(E30/var_time_monthsPerYear,G30,-F30,0,1),-1),"") -> 640 | E30: 0.1 | F30: 30000 | G30: 60 | H30: =IF(AND(G30>0,G30<12),"Really? A term less than a year?","") -> 
B31: leases_crane | C31: Crane/winch | D31: 80 | E31: 0.1 | F31: 2200 | G31: 36 | H31: =IF(AND(G31>0,G31<12),"Really? A term less than a year?","") -> 
B32: leases_opCapital | C32: Loan for operating capital
B33: leases_IBC | C33: Loan to purchase IBCs, other tools | I33: Note: fill in an item to the left by putting in each of the three required numbers, and the amortized cost and description will appear in monthly fixed costs list, above.
B34: leases_item05 | C34: Item #5
B35: leases_item06 | C35: Item #6
B36: leases_item07 | C36: Item #7
B37: leases_item08 | C37: Item #8
B38: leases_item09 | C38: Item #9
B39: leases_item10 | C39: Item #10
B40: leases_item11 | C40: Item #11
B41: leases_item12 | C41: Item #12

Sheet Time req'd
A1: Time required
A2: tim
C5: Time req'd (hrs/month, estimated average)
C6: moTime_perDigPerProd_Total | D6: Time required, total/mo/producer | E6: =SUM(E7:E13) -> 9.072916667 | F6: hrs/prod/mo
C7: moTime_perDigPerProdServiceHrs | D7: Monthly hrs service, per digester | E7: =((var_service_hoursOnSiteServiceCall_Avg*var_service_timesPerWeek)+tim_moTime_roundTripToProd_Avg)*var_time_weeksPerMonth -> 5.072916667 | F7: hrs/prod/mo | G7: includes travel time
C8: moTime_perProdEmployeeReEducationHrsAvg | D8: Employee re-education, hrs per mo, est avg | E8: 1 | F8: hrs/prod/mo
C9: moTime_perProdOfficeWorkHrsAvg | D9: Office work req'd, per prod per mo, est avg | E9: =var_paperwork_hrsPerProducerPerMo -> 3 | F9: hrs/prod/mo
C10: moTime_moCustomActivity01_perProdPerMo | D10: Monthly /producer activity #1, hrs/prod/mo | E10: 0 | F10: hrs/prod/mo
C11: moTime_moCustomActivity02_perProdPerMo | D11: Monthly /producer activity #2, hrs/prod/mo | E11: 0 | F11: hrs/prod/mo
C12: moTime_moCustomActivity03_perProdPerMo | D12: Monthly /producer activity #3, hrs/prod/mo | E12: 0 | F12: hrs/prod/mo
C13: moTime_moCustomActivity04_perProdPerMo | D13: Monthly /producer activity #4, hrs/prod/mo | E13: 0 | F13: hrs/prod/mo
C16: moTime_roundTripToProd_Avg | D16: Time required, round trip to producer, avg. | E16: =(var_producer_tripMiles_avg/var_speed_urban_avg)*2 -> 0.6666666667 | F16: hrs/prod/ea
C17: moTime_hrsReqdForAllProducers | D17: Time required, monthly service, all producers | E17: =(tim_moTime_perDigPerProd_Total*sum_producer_numTotal) -> 136.09375 | F17: hrs/mo
C18: moTime_hrsAvailablePerMoOnePerson | D18: Time available, one person for one month | E18: =var_workHrsPerWeek_avg*var_time_weeksPerMonth -> 173.9285714 | F18: hrs/mo
C20: moTime_prospectingNewProducers | D20: Prospecting for new producers | E20: 10 | F20: hrs/mo | H20: <== not presently used in calculations
C21: moTime_moBusinessActivity01_perMo | D21: Monthly business activity #1, hrs/mo | E21: 0 | F21: hrs/prod/mo | H21: <== "
C22: moTime_moBusinessActivity02_perMo | D22: Monthly business activity #1, hrs/mo | E22: 0 | F22: hrs/prod/mo | H22: <== "
C23: moTime_moBusinessActivity03_perMo | D23: Monthly business activity #1, hrs/mo | E23: 0 | F23: hrs/mo | H23: <== "
C24: moTime_moBusinessActivity04_perMo | D24: Monthly business activity #1, hrs/mo | E24: 0 | F24: hrs/mo | H24: <== "
C27: Startup costs, per producer (not presently used in calculations!) | E27: =ROUNDUP(SUM(E28:E29)/tim_moTime_AmortStartUpCosts,0) -> 49 | F27: =CONCATENATE("Total startup per producer cost of ",DOLLAR(E27,0)," amortized over ",tim_moTime_AmortStartUpCosts," months per Std vars") -> Total startup per producer cost of $49 amortized over 4 months per Std vars
C28: prodStartUp_installTime | D28: Cost installation (1 time, $4hrs + travel) | E28: =(var_cost_digesterInstallation_hours+tim_moTime_roundTripToProd_Avg)*sum_sal_hourly_Employee -> 74.66666667 | F28: done by owner and one emp
C29: prodStartUp_trainingTime | D29: Cost training (1 time, $4hrs + travel) | E29: =var_cost_digesterTraining_hours*sum_sal_hourly_Owner -> 120 | F29: done by owner

Sheet Std vars
A1: Standard variables
A2: var
F4: As | G4: Favorability
C5: Std vars | E5: l,a,m,c? | F5: Used | G5: Least | H5: Avg. | I5: Most | J5: Custom | K5: Units
C6: cost_energy_ElectricPerTherm | D6: Cost electricity, per therm equiv | E6: a | F6: =IF(E6="l",G6,IF(E6="a",H6,IF(E6="m",I6,"!"))) -> 50 | G6: 0 | H6: 50 | I6: 150 | K6: $/therm
C7: cost_digesterInstallation_hours | D7: Digester installation, hrs | E7: a | F7: 4 | G7: 6 | H7: 4 | I7: 3 | K7: hrs
C8: cost_digesterTraining_hours | D8: Digester training, hrs | E8: a | F8: 6 | G8: 8 | H8: 6 | I8: 4 | K8: hrs
C9: service_timesPerWeek | D9: Serviced X times a week | E9: a | F9: 0.5 | G9: 1 | H9: 0.5 | I9: 0.33 | K9: events/wk
C10: service_hoursOnSiteServiceCall_Avg | D10: Avg on-site service time req'd | E10: a | F10: 1 | G10: 2 | H10: 1 | I10: 0.5 | K10: hrs/ea
C11: producer_tripMiles_avg | D11: Avg distance to producers (mi) | E11: a | F11: 10 | G11: 20 | H11: 10 | I11: 5 | K11: mi
C12: IBCs_costPerEa | D12: Average cost of IBCs | E12: a | F12: 100 | G12: 300 | H12: 100 | I12: 50 | K12: $/IBC
C13: IBCs_numPerEaDigester | D13: Number of IBCs per producer | E13: a | F13: 2 | G13: 3 | H13: 2 | I13: 1 | K13: IBCs/ea digester
C14: paperwork_hrsPerProducerPerMo | D14: Paperwork and data hrs, /producer/mo | E14: a | F14: 3 | G14: 6 | H14: 3 | I14: 1 | K14: hr/mo/ea
C15: income_perMo_pctOfTipping | D15: Installer charge, % of tipping | E15: m | F15: 0.75 | G15: 0.25 | H15: 0.5 | I15: 0.75
C16: income_perMo_pctOfEnergyProduced | D16: Installer charge, % of energy produced | E16: a | F16: 0.5 | G16: 0.25 | H16: 0.5 | I16: 0.75
C20: Other vars
C21: showVariableNames | D21: Show cell var names? | E21: FALSE | F21: =IF(var_showVariableNames,"Yes, show var names","No, do not show var names") -> No, do not show var names
C22: stripeEveryXthRow | D22: =CONCATENATE("Row stripes (every ",var_stripeEveryXthRow," rows in tipping wks)") -> Row stripes (every 4 rows in tipping wks) | E22: 4
C24: digester_HRT | D24: HRT | E24: 20 | F24: days
C25: digester_vol | D25: Vol digester | E25: 1.3 | F25: m3
C26: digester_dilution_volWater | D26: Dilution, FW/water by vol | E26: 1 | F26: =CONCATENATE("1:",var_digester_dilution_volWater," ratio") -> 1:1 ratio
C27: methane_cuFtPerTherm | D27: ft3 methane per therm | E27: 100 | F27: ft3/therm
C29: energy_useNatGas_Q | D29: Producers use natural gas (cook, heat, etc.)? | E29: TRUE | F29: if FALSE, assume electricity
C30: PUtruck_costPerMile | D30: Pick up truck cost, $/mi | E30: 0.75 | F30: $/mi
C31: speed_urban_avg | D31: Avg driving speed, my area | E31: 30 | F31: mph
C33: digester_costKit | D33: Cost digester, kit | E33: 1800 | F33: $
C34: digester_timeToBuildKit | D34: Avg time to build a kit | E34: 7 | F34: hrs
C35: digester_costKitCompleted | D35: Cost digester, completed kit | E35: =ROUNDUP(var_digester_costKit+(var_digester_timeToBuildKit*sum_sal_hourly_Employee),-1) -> 1920 | F35: $
C36: digester_costParts | D36: Cost digester, parts | E36: 750 | F36: $
C37: digester_timeToMakePartsAndBuild | D37: Avg time to produce parts and build dig. | E37: 20 | F37: hrs
C38: digester_costFromPartsCompleted | D38: Cost digester, completed from parts | E38: =ROUNDUP(var_digester_costParts+(var_digester_timeToMakePartsAndBuild*sum_sal_hourly_Employee),-1) -> 1070 | F38: $
C39: digester_costCalculated | D39: Cost digester, calculated from vars | E39: =IF(sum_digester_buildFromKitsOrParts="kits",var_digester_costKitCompleted,IF(sum_digester_buildFromKitsOrParts="parts",var_digester_costFromPartsCompleted,"err!")) -> 1920 | F39: =CONCATENATE("$: Chose ",sum_digester_buildFromKitsOrParts, " because of var in summary.") -> $: Chose kits because of var in summary.
C41: digester_amortYrs_avg | D41: =CONCATENATE("Digester, amortize over ",var_digester_amortYrs_avg," months") -> Digester, amortize over 36 months | E41: =12*3 -> 36 | F41: mos
C42: digester_pctAPR | D42: Digester, APR for digester amortization | E42: 0.1
C43: digester_amortCostCalculated | D43: Digester, amortized /mo cost, calculated | E43: =ROUND(PMT(var_digester_pctAPR/var_time_monthsPerYear,var_digester_amortYrs_avg,-var_digester_costCalculated,1,),0) -> 62 | F43: $
C44: IBCs_amortizeOverMos | D44: IBC, months to amortize | E44: 12 | F44: mos
C45: IBCs_amortizedPerMoCost | D45: IBC, per month amort $ | E45: =PMT(0,var_IBCs_amortizeOverMos,-var_IBCs_costPerEa,0,1) -> 8.333333333
C47: workHrsPerWeek_avg | D47: Avg working hours/week | E47: 40 | F47: hrs/wk
C48: time_minsPerHr | D48: Mins/Hr | E48: 60 | F48: min/hr
C49: time_daysPerYear | D49: Days/year | E49: 365.25 | F49: da/yr
C50: time_monthsPerYear | D50: Months/year | E50: 12 | F50: mo/yr
C51: time_daysPerWeek | D51: Days/week | E51: 7 | F51: da/wk
C52: time_weeksPerYear | D52: Weeks/year | E52: =(var_time_daysPerYear/var_time_daysPerWeek) -> 52.17857143 | F52: wks/yr | G52: Note that wks/yr and wks/mo are CALCULATED, thus exact, versus the
C53: time_weeksPerMonth | D53: Weeks/month | E53: =var_time_weeksPerYear/var_time_monthsPerYear -> 4.348214286 | F53: wks/mo | G53: standard values of 52 and 4.

Sheet Tipping fees
A1: Tipping fees by state
A2: tfs | D2: These lists are not 'active' in the sense that the numbers are not used in calculations in this SS.
D3: The lists are provided for your convenience, but you may well be able to find better numbers online.
D4: So many of the numbers reported in the two lists vary by so much that overall accuracy is in question.
C6: Data ostensibly from 2016 | F6: Data ostensibly from 2013
C8: The EREF site serves as the primary source for much of the data reported by others (even 2nd and 3rd hand) for tipping fees | F8: The Green Power, in my view, is questionable, but it provides high/low and some info on # of sites
C9: Table 1.State and Regional Average Tip Fees, from EREF Survey Jan 2016 a,b | F9: Landfill Tipping Fees in USA
C10: https://erefdn.org/product/analysis-msw-landfill-tipping-fees/ | F10: http://www.cleanenergyprojects.com/Landfill-Tipping-Fees-in-USA-2013.html
C11: State | D11: Average | F11: State | G11: High | H11: Low | I11: Average
C12: Alabama | D12: 36.82 | F12: Alabama | G12: 47 | H12: 26 | I12: 37.6
C13: Alaska | D13: 56.5 | F13: Alaska (4 Landfills) | G13: 85 | H13: 21 | I13: 60.88
C14: Arizona | D14: N.R. | F14: Arizona | G14: 38.25 | H14: 30 | I14: 33.05
C15: Arkansas | D15: 26.25 | F15: Arkansas | G15: 43 | H15: 33 | I15: 36.5
C16: California | D16: 63.31 | F16: California | G16: 76.82 | H16: 34.37 | I16: 52.07
C17: Colorado | D17: 46 | F17: Colorado | G17: 66 | H17: 28 | I17: 49.6
C18: Connecticut | D18: N.R. | F18: Connecticut (1 Landfill) | G18: 57.15 | H18: 57.15 | I18: 57.15
C19: Delaware | D19: 75 | F19: Delaware (3 Landfills) | G19: 84 | H19: 84 | I19: 84
C20: Florida | D20: 51.31 | F20: Florida | G20: 83.92 | H20: 25.5 | I20: 43.65
C21: Georgia | D21: 109.5 | F21: Georgia | G21: 45 | H21: 30.55 | I21: 38.27
C22: Hawaii | D22: 85 | F22: Hawaii | G22: 90 | H22: 39 | I22: 75.17
C23: Idaho | D23: 33 | F23: Idaho | G23: 67.7 | H23: 30 | I23: 44.41
C24: Illinois | D24: 43.56 | F24: Illinois | G24: 60 | H24: 28 | I24: 43.46
C25: Indiana | D25: 18.5 | F25: Indiana | G25: 60.1 | H25: 32 | I25: 44.2
C26: Iowa | D26: 35.87 | F26: Iowa | G26: 40.5 | H26: 25 | I26: 34.15
C27: Kansas | D27: 33 | F27: Kansas | G27: 43.5 | H27: 30.5 | I27: 37.46
C28: Kentucky | D28: 30.04 | F28: Kentucky | G28: 55 | H28: 33.5 | I28: 44.69
C29: Louisiana | D29: 72 | F29: Louisiana | G29: 31 | H29: 19.8 | I29: 26.96
C30: Maine | D30: 52.67 | F30: Maine (4 Landfills) | G30: 115 | H30: 72 | I30: 91
C31: Maryland | D31: 68.38 | F31: Maryland | G31: 70 | H31: 52 | I31: 62.7
C32: Massachusetts | D32: 86 | F32: Massachusetts | G32: 100 | H32: 60 | I32: 78.5
C33: Michigan | D33: 41 | F33: Michigan | G33: 88 | H33: 25 | I33: 46.82
C34: Minnesota | D34: 47.5 | F34: Minnesota | G34: 63.33 | H34: 26.66 | I34: 47.04
C35: Mississippi | D35: 32.45 | F35: Mississippi | G35: 47 | H35: 11 | I35: 26.48
C36: Missouri | D36: 24.47 | F36: Missouri | G36: 48.11 | H36: 30 | I36: 38.38
C37: Montana | D37: 25.79 | F37: Montana | G37: 31.05 | H37: 16.5 | I37: 25.51
C38: Nebraska | D38: 31.49 | F38: Nebraska | G38: 45 | H38: 21 | I38: 31.13
C39: Nevada | D39: N.R. | F39: Nevada | G39: 31 | H39: 13.7 | I39: 24.83
C40: New Hampshire | D40: 72.89 | F40: New Hampshire | G40: 87.55 | H40: 67 | I40: 77.85
C41: New Jersey | D41: 68.03 | F41: New Jersey | G41: 96 | H41: 44.31 | I41: 72.39
C42: New Mexico | D42: 25.85 | F42: New Mexico | G42: 62.01 | H42: 14.98 | I42: 33.8
C43: New York | D43: 62.5 | F43: New York | G43: 102 | H43: 49.5 | I43: 86.3
C44: North Carolina | D44: 43.5 | F44: North Carolina (4 Landfills) | G44: 65.84 | H44: 27.5 | I44: 41.59
C45: North Dakota | D45: 58.25 | F45: North Dakota | G45: 43.81 | H45: 34.65 | I45: 38.92
C46: Ohio | D46: 14.47 | F46: Ohio | G46: 52.8 | H46: 30 | I46: 39.66
C47: Oklahoma | D47: 69 | F47: Oklahoma | G47: 50.29 | H47: 25.75 | I47: 38.31
C48: Oregon | D48: 42.25 | F48: Oregon | G48: 83.75 | H48: 28.5 | I48: 55.74
C49: Pennsylvania | D49: 47.25 | F49: Pennsylvania | G49: 103 | H49: 63.25 | I49: 75.96
C50: Rhode Island | D50: 32 | F50: Rhode Island (1 Landfill) | G50: 75 | H50: 75 | I50: 75
C51: South Carolina | D51: 28.88 | F51: South Carolina | G51: 66 | H51: 29 | I51: 42.61
C52: South Dakota | D52: 46.75 | F52: South Dakota | G52: 59 | H52: 34 | I52: 41.9
C53: Tennessee | D53: 42 | F53: Tennessee | G53: 48 | H53: 30.5 | I53: 41.15
C54: Texas | D54: 28 | F54: Texas | G54: 41 | H54: 5 | I54: 28.95
C55: Utah | D55: 30.18 | F55: Utah | G55: 33 | H55: 15 | I55: 24.29
C56: Vermont | D56: 22 | F56: Vermont (2 Landfills) | G56: 87.14 | H56: 77.5 | I56: 82.32
C57: Virginia | D57: 38.63 | F57: Virginia | G57: 66 | H57: 32 | I57: 46.11
C58: Washington | D58: 64.58 | F58: Washington | G58: 142.01 | H58: 28.8 | I58: 70.44
C59: West Virginia | D59: 50.82 | F59: West Virginia | G59: 69.25 | H59: 41.75 | I59: 49.46
C60: Wisconsin | D60: 64 | F60: Wisconsin | G60: 66 | H60: 35 | I60: 50.2
C61: Wyoming | D61: 47 | F61: Wyoming | G61: 102 | H61: 35 | I61: 60.4

Sheet scratch (hidden)
B3: Weather?
B4: The cost of the digester and its installation, whether it is purchased or leased and the details thereof
B5: The amount of food waste being generated, and its characteristics
B6: The cost of the fuel source being used for heating and cooking, to establish a basis for fuel replacement value
B7: The requirements for servicing by the installer and the producer’s employees, primarily as a function of time
B8: The cost of the producer’s present means of dealing with food waste, such as hauling to a landfill (tipping fees)
B9: The cost of heating the digester, by burning biogas, collecting solar energy, or heating water using electricity
B10: Allow comparison between 2 scenarios, or 3 if possible, | I10: costVar_digester_installation_perEa
B11: Provide min installers, achieve certain net, show hours est. servicing | I11: costVar_training_perEa
B12: Add in cost per mile of driving | I12: costVar_servicing_perMo
B13: Different first year contract? | I13: costVar_digesterPerProducerAmortization_perMo
B14: Rate of sign-ups, num weeks until breakeven given certain conditions
B15: set up to calculate based on electricity as comparison fuel
B16: # Employees, per producer | E16: (tracked to number of trucks, # producers, or ?)
B17: # Producers per employee
B18: =CONCATENATE("with more IBCs, some might be left at composting facility or farm for later emptying, reducing number of monthly trips") -> with more IBCs, some might be left at composting facility or farm for later emptying, reducing number of monthly trips
B19: Number of trucks | D19: like emp, min would be based on time est.
B20: =sum_biogas_cuFtPerTonWetWeight/var_methane_cuFtPerTherm -> 30 | C20: =B20*Summary!L13*var_time_weeksPerMonth -> 39.13392857
B21: =(sum_biogas_cuFtPerTonWetWeight*sum_foodWaste_tonsPerWeek*sum_biogas_pctMethane)*var_time_weeksPerMonth -> 11870.625 | C21: ft3/mo | E21: =B21/100 -> 118.70625 | F21: therms/mo
B22: =(scr_methane_cuFtPerMo/var_methane_cuFtPerTherm)*sum_cost_energy_natGasPerTherm -> 47.4825 | C22: $/mo energy value
B24: =sum_foodWaste_tonsPerWeek*var_time_weeksPerMonth*sum_cost_tippingFeesPerTon -> 608.75 | C24: $/mo (cost calc'd per ton!) | E24: =scr_methane_dollarsPerMoAsNatGas/var_time_weeksPerMonth -> 10.92 | F24: /wk energy value
H26: costs_producers_varCostPerMo | I26: =CONCATENATE("Per mo variable costs, ",sum_producer_numTotal," prod/mo") -> Per mo variable costs, 15 prod/mo | J26: =(tmp_costVar_producers_costPerEa+tmp_costVar_ibcs_perMo+exp_costVar_digesterPerProducerAmortization_perMo)*sum_producer_numTotal -> 3930
C27: events/yr | L27: =Summary!D29*sum_sal_hourly_Employee -> 0 | M27: /mo paid hours
C28: =CONCATENATE(retHrsMins(scr_service_hoursPerMoPerProducer, FALSE),"/mo, incl. paperwork, data collection, et al") -> 0h/mo, incl. paperwork, data collection, et al | H28: incom_perProducersTotal_perMo | I28: Income based on assumptions | J28: =sum_producerCharge_total_perMo*sum_producer_numTotal -> 9487.05 | L28: =L27*var_time_monthsPerYear -> 0
B29: =((var_producer_tripMiles_avg*2)/var_speed_urban_avg)*sum_sal_hourly_Owner -> 13.33333333 | C29: =((var_producer_tripMiles_avg*2)/var_speed_urban_avg)*sum_sal_hourly_Owner -> 13.33333333 | D29: $/round trip | H29: incom_netPerMo | I29: net, based on assumptions | J29: =sum_incom_perProducersTotal_perMo-(sum_costs_fixed_perMo+tim_moTime_perDigPerProd_Total) -> 9477.977083 | K29: /mo | L29: =sum_incom_netPerMo*var_time_monthsPerYear+L28 -> 113735.725
J30: =(sum_incom_netPerMo*var_time_monthsPerYear)/sum_producer_numTotal -> 7582.381667
B31: 15
B32: =var_time_weeksPerYear*var_workHrsPerWeek_avg*scratch!B31 -> 31307.14286 | H32: tmp_costVar_producers_costPerEa | J32: 100
B33: 260 | H33: tmp_costVar_ibcs_perMo | J33: 100
B34: =ROUND(B32*B33,-4) -> 8140000
B36: Operating expenses: | H36: moTime_AmortStartUpCosts | I36: Amortize producer startup costs over X mos | J36: 4 | K36: mos.
B38: Gas expense
B39: Telephone expense
B40: annual repairs
B41: per mile cost vehicle
B42: conversion cost PU
B43: lease/buy commercial vehicle
B44: # producers under contract
B45: amortize digester
B46: gas price per mo
B47: Equipment repair expense
B49: Insurance' expense
B50: Rent expense
B51: Depreciation expense
B52: license expense
B53: Payroll taxes
B54: Office supplies expense
B55: Field supplies expense
B56: Miscellaneous expenses | D56: 4700
B57: Total operating expenses | E57: =SUM(D37:D56) -> 4700
B58: Net operating profit | E58: =Expenses!O23-E57 -> -4700
B63: Cost of travel to producer (mo? Per ea?) | E63: r
B64: hours per prod per mo | E64: r
B65: var costs per prod per mo | E65: r
B66: var costs per prod per ea | E66: r
B67: var costs IBCs/prod/mo | E67: r
B70: Cost mods to stove, HVAC
B72: hours req'd/producer/mo; emp or owner?
B73: trigger pt for recommend switch from owner to prod is _60%_ of full time
B74: Lots of text in its own worksheet
B75: Directions for use
B76: explain that this is not a month by month, but avg month; indication, not planning, not reporting tool
B78: Because of above, we cannot allocate training to a single month
B79: Nor can we describe the setup costs and allocate to a new producer
B80: Steady state' picture
